bitfinex-derivatives/quotes_ETHF0:USTF0_20250224
["timestamp","ask_amount","ask_price","bid_price","bid_amount"]
[1740387911725,2.679,2692.0,2691.9,0.00556659]
[1740387911926,2.679,2692.0,2691.9,0.74836659]
[1740387912125,2.679,2692.0,2691.9,0.00556659]
[1740387912431,3.42177,2692.0,2691.9,0.00556659]
[1740387913829,3.52087,2692.0,2691.9,0.00556659]
[1740387915425,4.08277,2692.0,2691.9,0.00556659]
[1740387918225,3.34,2692.0,2691.9,0.00556659]
[1740387919023,6.19,2691.9,2690.8,3.2078]
[1740387919221,3.2078,2691.0,2690.5,3.2078]
[1740387919430,3.2436,2690.9,2690.5,3.2078]
[1740387919625,3.2436,2690.9,2690.3,4.8633]
[1740387920129,3.24916659,2690.9,2690.3,4.86886659]
[1740387920834,2.68456659,2690.9,2690.3,4.86886659]
[1740387923131,0.00556659,2690.9,2690.3,4.86886659]
[1740387923336,3.2078,2691.8,2690.6,3.2078]
[1740387923535,3.2078,2692.1,2691.2,3.2078]
[1740387923836,2.679,2692.0,2691.3,1.1092]
[1740387924137,0.7428,2691.9,2691.3,43.76661]
[1740387924337,6.62957,2692.0,2691.9,0.7428]
[1740387924734,5.8868,2692.0,2691.9,0.7428]
[1740387924941,3.2078,2692.0,2691.9,0.7428]
[1740387925237,2.679,2692.5,2692.4,0.74266]
[1740387925440,3.2078,2692.7,2692.2,3.775]
[1740387925642,0.74262,2692.6,2692.5,0.74262]
[1740387925831,0.74266,2692.4,2692.3,0.5531]
[1740387926132,3.95046,2692.4,2692.3,0.5531]
[1740387926337,0.74269,2692.3,2692.2,0.5672]
[1740387926535,0.74273,2692.2,2692.0,0.74277]
[1740387926734,0.74278,2692.0,2691.7,0.00556659]
[1740387926930,2.679,2692.3,2691.7,0.00556659]
[1740387927126,0.74281,2691.9,2691.7,0.74841659]
[1740387927327,3.2078,2692.1,2691.7,0.74841659]
[1740387927328,3.2078,2692.1,2691.7,0.00556659]
[1740387927533,0.74282,2691.9,2691.7,0.00556659]
[1740387927733,3.2078,2692.1,2691.7,0.00556659]
[1740387928040,3.95063,2691.8,2691.7,0.00556659]
[1740387928333,6.62963,2691.8,2691.7,0.00556659]
[1740387928537,12.62963,2691.8,2691.7,0.00556659]
[1740387928835,6.62963,2691.8,2691.7,0.00556659]
[1740387929137,6.62963,2691.8,2691.0,1.1364]
[1740387929138,0.74302,2691.1,2691.0,0.5602]
[1740387929327,5.8868,2691.1,2690.2,3.2078]
[1740387929533,3.95097,2690.6,2690.3,0.74324]
[1740387929729,2.679,2690.5,2690.3,0.74324]
[1740387930537,2.679,2690.5,2690.1,0.56576659]
[1740387930734,3.95107,2690.2,2690.1,0.56576659]
[1740387930937,3.2078,2690.2,2690.1,0.00556659]
[1740387931135,3.95107,2690.2,2690.1,0.00556659]
[1740387932441,0.74343,2689.7,2689.3,1.2872]
[1740387932646,2.679,2689.6,2689.2,0.5747]
[1740387932943,2.679,2689.6,2689.5,0.74346]
[1740387933144,3.2078,2689.7,2689.5,0.74346]
[1740387933334,2.679,2689.6,2689.3,1.85881]
[1740387933536,2.679,2689.8,2689.7,0.74341]
[1740387934341,2.679,2689.8,2689.2,5.64694724]
[1740387934342,2.679,2689.8,2689.2,5.07224724]
[1740387934544,5.8868,2689.8,2689.7,0.74341]
[1740387935040,5.8868,2689.8,2689.2,0.00557724]
[1740387935241,5.8868,2689.8,2689.7,0.74341]
[1740387935539,7.74526,2689.8,2689.2,0.00557724]
[1740387935740,3.2078,2689.4,2689.2,0.00557724]
[1740387936045,3.2078,2689.8,2689.2,0.00557724]
[1740387936243,3.95119,2689.8,2689.6,0.74344]
[1740387936439,3.2078,2689.8,2689.6,0.74344]
[1740387936743,3.2078,2689.8,2689.7,0.74341]
[1740387936944,5.8868,2689.8,2689.6,0.74342]
[1740387937240,5.8868,2689.8,2689.7,0.74341]
[1740387937641,5.8868,2689.8,2689.6,0.74342]
[1740387937946,5.8868,2689.8,2689.2,5.07218724]
[1740387938244,5.8868,2689.8,2689.7,0.74341]
[1740387938946,0.74344,2689.7,2689.4,0.74348]
[1740387939144,0.74342,2689.7,2689.2,3.21337724]
[1740387939549,0.74345,2689.6,2689.4,0.74349]
[1740387940038,5.8868,2689.8,2689.2,3.21337724]
[1740387940248,3.2078,2689.3,2689.2,0.00557724]
[1740387940744,3.95132,2689.3,2689.2,0.00557724]
[1740387941254,3.2078,2689.3,2689.2,0.74912724]
[1740387941544,3.42251,2689.4,2689.3,0.74352]
[1740387941545,2.679,2689.4,2689.3,0.74352]
[1740387941747,3.2078,2689.6,2689.5,0.74346]
[1740387941940,5.8868,2689.6,2689.5,0.74346]
[1740387942242,6.63025,2689.6,2689.4,0.74349]
[1740387942543,5.8868,2689.6,2689.2,0.00557724]
[1740387942744,3.2078,2689.6,2689.5,0.74346]
[1740387942944,2.679,2689.8,2689.7,0.74341]
[1740387943143,2.679,2689.8,2689.4,1.85874]
[1740387943344,2.679,2689.8,2689.7,0.74341]
[1740387943541,3.2078,2689.9,2689.8,0.74338]
[1740387943741,3.2078,2690.5,2689.8,1.85846]
[1740387944049,2.679,2690.6,2690.2,0.74327]
[1740387944244,2.679,2690.6,2690.5,0.74319]
[1740387944451,0.00556659,2690.7,2690.6,0.74316]
[1740387945050,0.00556659,2690.7,2690.4,3.2078]
[1740387945051,0.74316,2690.6,2690.4,0.7432]
[1740387945248,3.2078,2690.6,2690.1,3.2078]
[1740387945450,5.8868,2690.6,2690.1,3.2078]
[1740387945748,6.62998,2690.6,2690.4,0.74321]
[1740387946044,6.62998,2690.6,2690.1,3.2078]
[1740387946244,0.00556659,2690.7,2690.2,1.85814]
[1740387946451,0.00556659,2690.7,2690.6,0.74316]
[1740387947338,0.00556659,2690.7,2690.1,3.2078]
[1740387947542,0.00556659,2690.7,2690.2,1.85818]
[1740387947737,0.00556659,2690.7,2690.6,0.74316]
[1740387947943,0.74871659,2690.7,2690.1,3.2078]
[1740387948144,0.74871659,2690.7,2690.4,0.7432]
[1740387948548,0.74871659,2690.7,2690.1,3.2078]
[1740387948749,0.74871659,2690.7,2690.4,0.7432]
[1740387948948,0.74871659,2690.7,2690.1,5.06602]
[1740387949240,0.00556659,2690.7,2690.6,0.74316]
[1740387949646,0.74871659,2690.7,2690.4,0.74319]
[1740387949843,0.00556659,2690.7,2690.1,3.2078]
[1740387950045,0.00556659,2690.7,2690.6,0.74316]
[1740387952454,5.8868,2691.1,2691.0,0.74305]
[1740387952856,3.2078,2691.1,2691.0,0.74305]
[1740387953853,3.2078,2691.1,2690.8,0.00557724]
[1740387954053,3.2078,2691.1,2691.0,0.74305]
[1740387954259,0.00557724,2691.3,2691.0,0.74305]
[1740387954460,0.00557724,2691.3,2691.2,0.74299]
[1740387955555,0.74854724,2691.3,2691.1,0.5525]
[1740387955751,0.74854724,2691.3,2691.1,1.29551]
[1740387955954,3.42099,2691.2,2691.1,0.5525]
[1740387956155,2.678,2691.2,2690.8,0.00557724]
[1740387956352,3.2078,2690.9,2690.8,0.00557724]
[1740387961254,6.1948,2690.9,2690.8,0.00557724]
[1740387961458,12.1948,2690.9,2690.8,0.00557724]
[1740387961660,12.1948,2690.9,2689.8,0.5718]
[1740387961661,18.3638,2690.9,2690.0,0.5546]
[1740387961959,3.2078,2690.1,2689.6,0.5755]
[1740387962267,3.95118,2689.8,2689.7,0.5546]
[1740387962563,3.2078,2689.8,2689.2,1.1473]
[1740387962758,3.2078,2689.5,2689.4,0.74348]
[1740387962953,3.2078,2689.5,2689.3,1.2981]
[1740387963163,0.74342,2689.7,2689.5,0.74346]
[1740387963366,3.2078,2689.8,2689.3,0.5546]
[1740387963570,0.74344,2689.6,2689.4,0.74348]
[1740387963862,0.74349,2689.4,2689.3,0.5546]
[1740387964057,0.74348,2689.5,2689.3,1.29812]
[1740387964260,3.42145,2689.6,2689.4,0.74348]
[1740387964462,2.678,2689.6,2689.3,0.5546]
[1740387964661,2.678,2689.6,2689.5,0.74346]
[1740387965155,3.2078,2689.8,2689.5,0.74346]
[1740387965363,5.8858,2689.8,2689.7,0.74341]
[1740387965664,2.987,2689.9,2689.3,0.5546]
[1740387965866,2.987,2689.9,2689.8,0.74338]
[1740387967565,0.00557724,2690.0,2689.9,0.74335]
[1740387968164,0.00557724,2690.0,2689.9,1.31695]
[1740387968571,0.00557724,2690.0,2689.9,0.74335]
[1740387968766,0.00557724,2690.0,2689.8,0.74336]
[1740387968968,0.74891724,2690.0,2689.6,1.1465]
[1740387969174,0.00557724,2690.0,2689.6,1.1465]
[1740387969474,0.74338,2689.8,2689.7,0.7434]
[1740387969674,0.00557724,2690.0,2689.9,0.74335]
[1740387970365,0.74890724,2690.0,2689.8,0.74336]
[1740387970566,0.00557724,2690.0,2689.9,0.74335]
[1740387973181,0.00557724,2690.0,2689.7,3.7628]
[1740387979982,7.24e-06,2690.0,2689.7,6.4398]
[1740387980188,3.2078,2691.3,2689.7,12.4398]
[1740387980487,2.677,2691.2,2690.6,3.2078]
[1740387980682,3.2078,2691.0,2690.7,0.5383]
[1740387980875,3.2078,2691.0,2690.2,2.677]
[1740387981083,1.1665,2690.9,2690.3,0.5383]
[1740387981379,1.17207724,2690.9,2690.3,3.75167724]
[1740387981581,1.91519724,2690.9,2690.8,0.7431]
[1740387981776,0.58847724,2690.9,2690.8,0.7431]
[1740387982088,0.00557724,2690.9,2690.8,0.7431]
[1740387983188,0.00557724,2690.9,2690.7,0.5763]
[1740387983388,0.74313,2690.7,2690.6,0.6072]
[1740387983884,0.5434,2690.8,2690.6,1.35036]
[1740387984085,0.5434,2690.8,2690.6,0.6072]
[1740387984289,0.74313,2690.7,2690.6,0.6072]
[1740387984481,0.5434,2690.8,2690.7,0.74313]
[1740387984690,2.68157724,2690.9,2690.8,0.7431]
[1740387985887,0.00557724,2690.9,2690.8,0.7431]
[1740387990195,0.00557724,2690.9,2690.6,3.815]
[1740387992794,3.21337724,2690.9,2690.6,0.6072]
[1740387993598,0.00557724,2690.9,2690.6,0.6072]
[1740387995096,0.00557724,2690.9,2690.6,3.815]
[1740387995898,5.8828,2691.6,2690.7,2.675]
[1740387996106,1.1366,2691.7,2690.9,3.2078]
[1740387996291,3.2078,2691.9,2691.2,3.2078]
[1740387996487,5.8828,2691.9,2691.8,0.74283]
[1740387996893,3.41776,2692.1,2692.0,0.74277]
[1740387997198,2.68057724,2692.1,2691.5,1.85729]
[1740387997398,0.74282,2691.9,2691.8,0.00557724]
[1740387997594,0.74282,2691.9,2691.8,0.74840724]
[1740387998004,0.74282,2691.9,2691.8,0.00557724]
[1740387998299,3.95062,2691.9,2691.8,0.00557724]
[1740388000705,3.9506,2691.9,2691.8,0.00557724]
[1740388001001,3.9506,2691.9,2691.8,0.74840724]
[1740388001197,3.9506,2691.9,2691.8,0.00557724]
[1740388001504,3.2078,2691.9,2691.8,0.00557724]
[1740388001699,3.9506,2691.9,2691.8,0.00557724]
[1740388003303,3.2078,2691.9,2691.8,0.00557724]
[1740388005996,5.8818,2691.9,2691.8,0.00557724]
[1740388008103,0.00557724,2692.1,2691.8,3.21337724]
[1740388008304,0.00557724,2692.1,2691.9,1.7554]
[1740388009097,0.00557724,2692.1,2692.0,0.74277]
[1740388012105,0.00557724,2692.1,2691.9,1.7554]
[1740388019410,3.2616,2693.1,2692.0,3.2078]
[1740388019703,0.5896,2693.1,2692.3,3.2078]
[1740388019909,3.2078,2693.3,2692.6,3.2078]
[1740388020109,0.74244,2693.2,2692.8,1.85639]
[1740388020413,0.5896,2693.5,2693.4,0.74239]
[1740388020605,0.5896,2693.5,2692.9,3.2078]
[1740388020805,0.74244,2693.3,2693.2,0.74799724]
[1740388021008,0.5896,2693.5,2693.2,0.00557724]
[1740388021407,0.74239,2693.4,2693.2,0.74799724]
[1740388021710,0.5896,2693.5,2693.2,0.74800724]
[1740388022108,0.74241,2693.4,2693.2,0.74800724]
[1740388022305,0.5896,2693.5,2693.2,0.74800724]
[1740388022510,0.74242,2693.3,2693.2,0.74800724]
[1740388022706,0.74242,2693.3,2693.2,0.00557724]
[1740388022903,0.5896,2693.5,2693.2,0.74801724]
[1740388023109,0.74242,2693.3,2693.2,0.00557724]
[1740388023506,3.2078,2693.6,2693.5,0.74236]
[1740388024110,0.00557724,2693.7,2693.6,0.74233]
[1740388024617,0.00557724,2693.7,2693.4,0.5574]
[1740388024812,0.00557724,2693.7,2693.5,0.74234]
[1740388025112,0.00557724,2693.7,2693.4,0.5574]
[1740388025413,0.00557724,2693.7,2693.6,0.74233]
[1740388026611,7.24e-06,2693.7,2693.6,0.74233]
[1740388027205,7.24e-06,2693.7,2693.6,6.74233]
[1740388028007,3.2078,2694.6,2694.5,0.74208]
[1740388028211,0.5342,2695.0,2694.1,5.06326]
[1740388028515,3.2078,2695.1,2695.0,0.74195]
[1740388028717,3.2078,2695.1,2694.4,3.2078]
[1740388029108,3.2078,2695.1,2694.5,0.00556679]
[1740388029413,3.2078,2695.1,2694.8,0.74198]
[1740388029608,3.2078,2695.1,2694.5,0.00556679]
[1740388029907,3.94974,2695.1,2694.5,1.86075679]
[1740388030107,3.2078,2695.1,2694.5,1.86075679]
[1740388030303,3.2078,2695.1,2694.5,1.86073679]
[1740388030507,3.2078,2695.1,2694.5,0.00556679]
[1740388030708,0.74202,2694.8,2694.7,0.74202]
[1740388031106,3.2078,2695.1,2695.0,0.74195]
[1740388031310,3.94972,2695.1,2695.0,0.74195]
[1740388031506,0.74201,2694.8,2694.5,0.00556679]
[1740388031812,0.742,2694.8,2694.7,0.74201]
[1740388032109,3.2078,2695.1,2694.5,0.00556679]
[1740388032310,0.74204,2694.7,2694.5,0.00556679]
[1740388032507,3.94982,2694.8,2694.6,0.74206]
[1740388032804,3.2078,2694.8,2694.7,0.74203]
[1740388033007,3.2078,2694.8,2694.5,0.00556679]
[1740388033410,0.74204,2694.7,2694.5,0.74763679]
[1740388033812,3.2078,2694.8,2694.5,0.74763679]
[1740388034009,3.2078,2694.8,2694.5,0.00556679]
[1740388034317,0.74206,2694.6,2694.5,0.00556679]
[1740388034510,3.2078,2694.8,2694.5,0.00556679]
[1740388035012,3.2078,2694.8,2694.5,0.74763679]
[1740388035207,0.74206,2694.6,2694.5,0.00556679]
[1740388035406,2.669,2694.6,2694.5,0.00556679]
[1740388035612,2.669,2694.6,2694.5,0.74764679]
[1740388036007,1.1524,2695.0,2694.9,0.74197]
[1740388036207,3.8214,2695.0,2694.9,0.74197]
[1740388037005,1.1524,2695.0,2694.9,0.74197]
[1740388037208,1.1524,2695.0,2694.5,1.86073679]
[1740388037413,1.1524,2695.0,2694.9,0.74197]
[1740388037914,1.1524,2695.0,2694.8,0.74199]
[1740388038114,1.1524,2695.0,2694.5,0.00556679]
[1740388038409,3.2078,2695.1,2695.0,0.74195]
[1740388039007,3.2078,2695.1,2694.8,1.31348]
[1740388039213,0.74197,2695.0,2694.8,0.74198]
[1740388039414,1.32947,2695.0,2694.8,0.74198]
[1740388039605,0.74197,2694.9,2694.5,0.00556679]
[1740388039809,0.5875,2695.0,2694.5,0.00556679]
[1740388040011,3.2078,2694.8,2694.5,0.00556679]
[1740388040219,0.74206,2694.6,2694.5,0.00556679]
[1740388040520,5.8758,2694.8,2694.5,0.00556679]
[1740388040717,0.74206,2694.6,2694.5,0.00556679]
[1740388041910,0.74221,2694.1,2693.6,2.38891]
[1740388042111,3.2078,2694.1,2694.0,0.74222]
[1740388042310,3.2078,2694.1,2693.7,1.85577]
[1740388042311,2.668,2694.3,2694.2,0.74217]
[1740388042815,3.94992,2694.4,2694.3,0.74214]
[1740388042816,3.2078,2694.4,2694.3,0.74214]
[1740388044319,3.2078,2694.4,2694.2,0.74216]
[1740388044522,1.29324,2694.3,2694.2,0.74216]
[1740388045021,5.8758,2694.4,2694.1,0.00556679]
[1740388045522,5.8758,2694.4,2694.3,0.74214]
[1740388046115,5.8758,2694.4,2694.1,0.00556679]
[1740388048615,0.5744,2694.3,2694.1,0.00556679]
[1740388048819,0.5744,2694.3,2693.1,1.1401]
[1740388049121,0.5744,2694.3,2693.1,1.7254]
[1740388049122,3.2078,2693.7,2693.1,1.7254]
[1740388049618,3.2078,2693.7,2693.2,40.8]
[1740388050021,3.2078,2694.2,2693.5,3.2078]
[1740388050733,3.2078,2694.2,2693.6,0.5602]
[1740388050924,3.2078,2694.2,2693.7,1.1652]
[1740388057231,3.2078,2693.8,2693.4,2.954]
[1740388057431,0.5478,2693.7,2693.4,2.954]
[1740388057829,0.5478,2693.7,2693.3,1.1558]
[1740388058134,3.2078,2693.4,2693.2,0.00556679]
[1740388074243,2.666,2693.3,2693.2,0.00556679]
[1740388074736,2.666,2693.3,2692.5,0.5809]
[1740388074940,3.2078,2692.6,2692.5,0.5809]
[1740388076034,0.00556679,2692.8,2692.5,0.5809]
[1740388083441,3.2078,2692.6,2692.3,0.58026679]
[1740388083641,0.00556679,2692.8,2692.3,0.58026679]
[1740388086551,3.2078,2692.6,2692.3,0.58026679]
[1740388089857,3.2078,2692.6,2692.3,0.00556679]
[1740388090055,1.0751,2692.5,2692.3,0.00556679]
[1740388090552,3.7401,2692.5,2692.3,0.00556679]
[1740388091853,1.0751,2692.5,2692.3,0.00556679]
[1740388092053,2.665,2692.4,2692.3,0.00556679]
[1740388099874,4.7632,2692.4,2692.3,0.00556679]
[1740388101963,2.0982,2692.4,2692.3,0.00556679]
[1740388102165,4.7632,2692.4,2692.3,0.00556679]
[1740388104960,2.665,2692.4,2692.3,0.00556679]
[1740388105560,8.665,2692.4,2691.5,1.6671]
[1740388105761,3.2078,2691.6,2691.5,0.5381]
[1740388106568,3.2078,2691.6,2690.9,3.2078]
[1740388106758,3.2078,2691.6,2691.0,0.5692]
[1740388106963,3.2078,2691.6,2691.3,0.00556679]
[1740388107163,3.2078,2691.6,2691.4,0.74292]
[1740388107370,3.2078,2691.6,2691.3,0.00556679]
[1740388107671,0.74292,2691.5,2691.3,0.00556679]
[1740388107863,0.74292,2691.5,2691.3,0.74851679]
[1740388108065,3.2078,2691.6,2691.3,0.00556679]
[1740388108265,3.2078,2691.6,2691.5,0.74291]
[1740388108663,3.2078,2691.6,2691.3,0.58126679]
[1740388108865,3.2078,2691.6,2691.5,0.74291]
[1740388110271,3.2078,2691.6,2691.4,0.5739]
[1740388111867,3.2078,2692.0,2691.4,0.5739]
[1740388112067,5.8718,2692.0,2691.4,0.5739]
[1740388112873,3.2078,2692.0,2691.4,0.5739]
[1740388114771,3.7963,2692.0,2691.4,0.5739]
[1740388115176,3.2078,2691.7,2691.4,0.5739]
[1740388115877,0.5484,2691.6,2691.4,0.5739]
[1740388116180,0.5484,2691.6,2691.3,0.00556679]
[1740388117778,2.664,2691.6,2691.3,0.00556679]
[1740388121479,3.2078,2691.4,2691.3,0.00556679]
[1740388128087,4.3423,2691.4,2691.3,0.00556679]
[1740388132076,16.5113,2691.4,2690.0,3.2078]
[1740388132286,3.2078,2690.6,2690.2,1.6796]
[1740388132682,0.5335,2690.5,2690.2,1.6796]
[1740388133684,3.21336679,2690.6,2690.2,1.6796]
[1740388134486,0.00556679,2690.6,2690.2,4.8874]
[1740388135585,0.00556679,2690.6,2690.5,3.2078]
[1740388135883,3.2078,2691.3,2690.5,3.2078]
[1740388136083,3.2078,2691.6,2690.9,3.2078]
[1740388136283,5.8708,2691.6,2691.3,0.74294]
[1740388136477,0.74302,2691.2,2691.0,1.1583]
[1740388136782,3.95078,2691.3,2691.2,0.74299]
[1740388136978,3.95078,2691.3,2691.0,1.1583]
[1740388136979,0.00556679,2691.4,2691.3,0.74297]
[1740388139384,0.74297,2691.3,2691.2,0.74297]
[1740388139589,0.74302,2691.1,2691.0,1.90133]
[1740388139790,1.32461,2691.2,2691.1,0.74302]
[1740388140288,0.5816,2691.2,2691.1,0.74302]
[1740388140484,1.32459,2691.2,2691.1,0.74302]
[1740388140990,0.74302,2691.1,2691.0,0.74304]
[1740388141189,1.32461,2691.2,2691.0,0.74304]
[1740388141390,3.2436,2691.2,2691.0,0.74304]
[1740388141585,0.74308,2690.9,2690.8,0.00556679]
[1740388141789,3.95087,2691.0,2690.8,0.00556679]
[1740388142086,3.2078,2691.0,2690.8,0.00556679]
[1740388158700,0.5816,2691.2,2690.8,0.00556679]
[1740388161399,1.31878868,2691.2,2690.8,0.00556679]
[1740388162700,3.2078,2691.0,2690.8,0.00556679]
[1740388165601,2.66,2690.9,2690.8,0.00556679]
[1740388166407,3.39718868,2690.9,2690.8,0.00556679]
[1740388171215,6.60498868,2690.9,2690.8,0.00556679]
[1740388171407,5.8678,2690.9,2690.8,0.00556679]
[1740388172309,6.60498868,2690.9,2690.8,0.00556679]
[1740388173717,6.60498868,2690.9,2689.9,40.8]
[1740388173908,3.2078,2690.2,2689.8,1.6251]
[1740388179819,3.2078,2690.2,2689.9,40.8]
[1740388186215,3.2078,2690.2,2689.8,1.6251]
[1740388186717,3.2078,2690.2,2689.8,42.4251]
[1740388188925,3.2078,2690.2,2689.8,1.6251]
[1740388199423,2.656,2690.1,2689.8,1.0849]
[1740388199619,3.3919106,2690.1,2689.7,0.00556679]
[1740388199824,3.2078,2689.8,2689.7,0.00556679]
[1740388201631,3.2078,2689.8,2689.7,0.56022314]
[1740388204029,3.2078,2689.8,2689.7,0.55993435]
[1740388204730,3.26808774,2689.8,2689.7,0.55993435]
[1740388205534,3.26808105,2689.8,2689.7,0.55962916]
[1740388205732,3.2078,2689.8,2689.7,0.55962916]
[1740388207421,3.26806092,2689.8,2688.9,1.6503]
[1740388207622,1.2738106,2689.9,2688.9,1.6503]
[1740388207623,3.2078,2689.2,2688.9,1.6503]
[1740388208730,0.7359106,2689.6,2688.9,1.6503]
[1740388208932,0.7359106,2689.6,2688.9,4.8581]
[1740388209234,3.9437106,2689.7,2688.9,4.8581]
[1740388209741,0.7359106,2689.7,2689.4,3.2078]
[1740388209929,3.21336679,2690.0,2689.5,1.6675]
[1740388210124,3.21336679,2690.0,2689.6,1.8586]
[1740388210333,3.21336679,2690.0,2689.9,0.74335]
[1740388210834,0.74338,2689.9,2689.8,0.74335]
[1740388211036,0.74338,2689.9,2689.6,1.8586]
[1740388211037,3.95669679,2690.0,2689.9,0.74335]
[1740388211228,3.21336679,2690.0,2689.9,0.74335]
[1740388211728,3.95669679,2690.0,2689.9,0.74335]
[1740388211928,0.74339,2689.9,2689.8,0.74336]
[1740388212433,1.3229106,2689.9,2689.5,1.6675]
[1740388212632,0.74344,2689.6,2689.5,2.41093]
[1740388212835,0.74344,2689.6,2689.5,0.74343]
[1740388213025,0.74344,2689.6,2689.5,0.74344]
[1740388213437,0.5778,2689.6,2689.5,0.74344]
[1740388213636,1.32125,2689.6,2689.5,0.74346]
[1740388213830,0.5778,2689.6,2689.5,0.74346]
[1740388214427,3.9437106,2689.7,2689.3,1.85879]
[1740388214626,3.9437106,2689.7,2689.6,0.74344]
[1740388215136,3.9437106,2689.7,2689.2,1.677]
[1740388215831,3.2078,2689.4,2689.2,1.677]
[1740388216227,5.8628,2689.4,2688.8,3.21157801]
[1740388216433,1.8917106,2689.3,2688.9,1.6904]
[1740388217229,1.3210106,2689.3,2688.9,1.6904]
[1740388217435,0.7359106,2689.3,2688.9,1.6904]
[1740388217941,3.3899106,2689.6,2688.9,1.6904]
[1740388218837,0.7359106,2689.6,2689.0,3.2078]
[1740388219228,2.654,2689.7,2689.0,3.2078]
[1740388219430,2.654,2689.7,2689.1,0.54913717]
[1740388219627,2.654,2689.7,2689.2,0.54913717]
[1740388219832,2.654,2689.7,2689.3,0.5491409]
[1740388220026,2.654,2689.7,2689.4,2.2452409]
[1740388220232,2.654,2689.7,2689.5,0.5491409]
[1740388220531,5.8618,2689.7,2689.6,0.5492053]
[1740388221135,6.5977106,2689.7,2689.6,0.5492053]
[1740388221838,6.5977106,2689.7,2689.6,0.54926437]
[1740388223445,6.65809071,2689.7,2689.6,0.54926437]
[1740388223638,6.65809071,2689.7,2689.0,2.954]
[1740388223841,6.65809071,2689.7,2689.1,0.5494705]
[1740388223842,3.2078,2689.4,2689.1,0.5494705]
[1740388224142,3.2078,2689.4,2689.2,0.54946989]
[1740388224345,3.2078,2689.4,2689.0,2.954]
[1740388224346,1.1478,2689.3,2689.0,2.954]
[1740388224534,1.1478,2689.3,2689.1,0.54953012]
[1740388224732,1.1478,2689.3,2689.2,0.54953012]
[1740388224937,0.7359106,2689.3,2689.2,0.54953012]
[1740388225341,3.2078,2689.4,2689.2,0.54953012]
[1740388225543,3.2078,2689.4,2689.3,1.12053012]
[1740388225942,3.2078,2689.4,2689.3,1.12060089]
[1740388226738,3.9437106,2689.4,2689.3,1.12060089]
[1740388228050,3.9437106,2689.4,2689.3,1.12087152]
[1740388228456,3.9437106,2689.4,2689.3,0.571]
[1740388228750,3.2078,2689.4,2689.3,1.12098774]
[1740388230048,0.7359106,2689.4,2689.3,0.571]
[1740388230250,0.7359106,2689.4,2689.3,1.12113712]
[1740388230550,0.7359106,2689.6,2689.3,1.12113712]
[1740388230750,0.7359106,2689.6,2689.4,1.68213712]
[1740388230943,0.7359106,2689.6,2689.5,0.55013712]
[1740388232168,3.94927739,2690.0,2689.5,0.55010502]
[1740388232471,3.94927739,2690.0,2689.6,0.55010502]
[1740388232772,3.94927739,2690.0,2689.7,0.55010502]
[1740388232966,3.94927739,2690.0,2689.8,0.55010502]
[1740388233166,3.94927739,2690.0,2689.9,0.55010502]
[1740388234165,2.653,2690.8,2689.9,12.15698499]
[1740388234361,3.2078,2690.7,2690.6,0.74316]
[1740388234559,3.2078,2690.7,2690.6,1.29314499]
[1740388235971,3.2078,2690.7,2690.6,0.54998499]
[1740388235972,3.95093,2690.7,2690.6,0.54998499]
[1740388236278,6.66330712,2690.7,2690.6,0.54903403]
[1740388236572,0.74319,2690.5,2690.4,0.00557745]
[1740388236773,0.80356712,2690.5,2690.4,0.00557745]
[1740388237970,0.80359064,2690.5,2690.4,0.00557745]
[1740388240274,0.74337,2689.9,2689.8,0.74338]
[1740388240473,3.95117,2689.9,2689.8,0.74338]
[1740388240866,0.74338,2689.8,2689.7,0.5653]
[1740388241071,0.74341,2689.7,2689.6,0.5762]
[1740388241274,0.74339,2689.8,2689.7,0.74339]
[1740388241776,0.74341,2689.7,2689.6,1.31963]
[1740388242278,3.2078,2689.9,2689.6,0.5762]
[1740388242478,0.7434,2689.8,2689.7,0.7434]
[1740388242976,0.74338,2689.8,2689.7,0.7434]
[1740388243171,3.2078,2689.9,2689.6,0.5762]
[1740388243371,3.2078,2689.9,2689.8,0.74338]
[1740388244074,3.95115,2689.9,2689.8,0.74338]
[1740388244281,5.8588,2689.9,2689.6,0.5762]
[1740388244780,3.2078,2689.9,2689.6,0.5762]
[1740388245577,3.92734625,2689.9,2689.6,0.5762]
[1740388245874,0.06041464,2689.8,2689.6,0.5762]
[1740388246080,0.06041464,2689.8,2689.5,0.00376735]
[1740388246278,3.2078,2689.6,2689.5,0.00376735]
[1740388247278,5.91927423,2689.6,2689.3,0.552]
[1740388247467,0.78002048,2689.5,2688.6,2.954]
[1740388247672,3.2078,2689.1,2688.7,1.1057]
[1740388247872,5.8588,2689.1,2688.7,1.1057]
[1740388248476,5.8588,2689.1,2688.8,0.54473998]
[1740388248676,5.8588,2689.1,2688.9,0.54473998]
[1740388248975,5.8588,2689.1,2689.0,0.54474295]
[1740388250479,5.8588,2689.1,2689.0,0.54455713]
[1740388251376,0.00557745,2689.2,2689.0,0.54455713]
[1740388251680,2.65,2689.6,2689.0,0.54455713]
[1740388251681,3.2078,2689.8,2689.1,0.54455713]
[1740388251870,3.2078,2689.8,2689.2,41.92965713]
[1740388252078,3.2078,2689.8,2689.3,0.54455713]
[1740388252273,3.2078,2689.8,2689.4,0.54455713]
[1740388252478,5.8578,2690.1,2689.5,0.54455713]
[1740388252678,0.00557745,2689.8,2689.6,0.54455713]
[1740388252877,0.00557745,2689.8,2689.7,0.54455713]
[1740388253281,0.00557745,2689.8,2689.7,1.28796713]
[1740388253878,0.74895745,2689.8,2689.7,0.54455713]
[1740388254185,0.00557745,2689.8,2689.7,0.54455713]
[1740388254376,0.00557745,2689.8,2689.7,1.28796713]
[1740388257085,0.00557745,2689.8,2689.7,1.28755062]
[1740388258189,0.00557745,2689.8,2689.7,0.54414062]
[1740388258680,0.00557745,2689.8,2689.7,0.54433814]
[1740388260790,0.00557745,2689.8,2689.7,0.54432459]
[1740388261688,7.45e-06,2689.8,2689.7,0.54432459]